fUSD/lending_fUSD_20260316
["ID","MTS","AMOUNT","RATE_DAILY","PERIOD"]
[408450356,1773654632656,-275.0,0.00018789,2]
[408450357,1773654632666,-289.8852,0.00018789,2]
[408450358,1773654632675,-193.0,0.00018829,2]
[408450359,1773654632684,-1538.0,0.00018835,2]
[408450360,1773654632694,-1538.0,0.00018835,2]
[408450361,1773654632703,-2128.75705794,0.00018845,2]
[408450362,1773654632712,-263.93544588,0.00018873,2]
[408450363,1773654632721,-500.0,0.00018873,2]
[408450364,1773654632730,-502.8043416,0.00018873,2]
[408450365,1773654632740,-368.93202184,0.00018873,2]
[408450366,1773654632749,-500.0,0.00018873,2]
[408450367,1773654632759,-500.09769254,0.00018873,2]
[408450368,1773654632768,-500.0,0.00018873,2]
[408450369,1773654632778,-500.24541501,0.00018873,2]
[408450370,1773654632788,-332.58199131,0.00018873,2]
[408450371,1773654632797,-500.0,0.00018873,2]
[408450372,1773654632807,-500.0,0.00018873,2]
[408450373,1773654632816,-500.0,0.00018873,2]
[408450374,1773654632826,-500.0,0.00018873,2]
[408450375,1773654632835,-386.95,0.00018888,2]
[408450376,1773654632845,-500.0,0.00018888,2]
[408450377,1773654632856,-500.0,0.00018888,2]
[408450378,1773654632866,-500.0,0.00018888,2]
[408450379,1773654632875,-500.0,0.00018888,2]
[408450380,1773654632885,-500.0,0.00018888,2]
[408450381,1773654632895,-500.0,0.00018888,2]
[408450382,1773654632904,-500.0,0.00018888,2]
[408450383,1773654632914,-500.0,0.00018888,2]
[408450384,1773654632924,-500.0,0.00018888,2]
[408450385,1773654632933,-500.0,0.00018888,2]
[408450386,1773654632943,-500.0,0.00018888,2]
[408450387,1773654632951,-500.0,0.00018888,2]
[408450388,1773654632960,-500.0,0.00018888,2]
[408450389,1773654632970,-500.0,0.00018888,2]
[408450390,1773654632979,-500.0,0.00018888,2]
[408450391,1773654632988,-500.0,0.00018888,2]
[408450392,1773654632998,-500.0,0.00018888,2]
[408450393,1773654633007,-500.0,0.00018888,2]
[408450394,1773654633017,-500.0,0.00018888,2]
[408450395,1773654633026,-500.0,0.00018888,2]
[408450396,1773654633035,-527.82387979,0.00018888,2]
[408450397,1773654633045,-500.0,0.00018888,2]
[408450398,1773654633055,-500.0,0.00018888,2]
[408450399,1773654633065,-500.0,0.00018888,2]
[408450400,1773654633075,-500.0,0.00018888,2]
[408450401,1773654633084,-500.0,0.00018888,2]
[408450402,1773654633095,-500.0,0.00018888,2]
[408450403,1773654633104,-500.0,0.00018888,2]
[408450404,1773654633114,-252.78238797,0.00018888,2]
[408450405,1773654633123,-500.0,0.00018889,2]
[408450406,1773654633132,-500.0,0.00018889,2]
[408450407,1773654633142,-526.51350935,0.00018889,2]
[408450408,1773654633151,-500.0,0.00018889,2]
[408450409,1773654633161,-840.19,0.00018889,2]
[408450410,1773654633170,-500.0,0.00018889,2]
[408450411,1773654633179,-500.0,0.00018946,2]
[408450412,1773654633188,-274.31076591,0.00018946,2]
[408450413,1773654633197,-179.35229117,0.00018946,2]
[408450414,1773654633207,-194.41892254,0.00018946,2]
[408450415,1773654633215,-504.3461137,0.00018946,2]
[408450416,1773654633224,-276.16946249,0.00018946,2]
[408450417,1773654633233,-443.07294302,0.00018946,2]
[408450418,1773654633395,-840.19,0.00018946,2]
[408450419,1773654633405,-500.0,0.00018946,2]
[408450420,1773654633415,-2128.75705787,0.00018962,2]
[408450421,1773654633424,-193.0,0.00018964,2]
[408450422,1773654633434,-504.23644602,0.00018973,2]
[408450423,1773654633443,-500.0,0.00018999,2]
[408450424,1773654633452,-500.0,0.00018999,2]
[408450425,1773654633461,-500.0,0.00018999,2]
[408450426,1773654633470,-500.0,0.00018999,2]
[408450427,1773654633479,-500.0,0.00018999,2]
[408450428,1773654633489,-527.9720124,0.00018999,2]
[408450429,1773654633498,-2128.75705787,0.00019079,2]
[408450430,1773654633507,-500.0,0.00019151,2]
[408450431,1773654633517,-386.95,0.00019162,2]
[408450432,1773654633526,-2128.75705787,0.00019197,2]
[408450433,1773654633535,-616.0,0.000192,2]
[408450434,1773654633545,-193.0,0.00019203,2]
[408450435,1773654633555,-193.0,0.00019208,2]
[408450436,1773654633564,-210.11,0.00019235,2]
[408450437,1773654633573,-193.0,0.00019243,2]
[408450438,1773654633583,-285.3465003,0.00019288,2]
[408450439,1773654633593,-524.70815383,0.00019288,2]
[408450440,1773654633602,-2128.75705787,0.00019314,2]
[408450441,1773654633611,-8273.97,0.00019373,2]
[408450442,1773654633621,-404.0,0.00019385,2]
[408450443,1773654633630,-622.79,0.00019413,2]
[408450444,1773654633639,-1002.33035576,0.00019421,2]
[408450445,1773654633649,-1000.0,0.00019421,2]
[408450446,1773654633660,-1000.0,0.00019421,2]
[408450447,1773654633669,-186.26012149,0.00019421,2]
[408450448,1773654633679,-448.24083087,0.00019421,2]
[408450449,1773654633688,-2128.75705787,0.00019431,2]
[408450450,1773654633698,-386.95,0.00019436,2]
[408450451,1773654633707,-193.0,0.00019535,2]
[408450452,1773654633716,-2128.75705787,0.00019548,2]
[408450453,1773654633725,-29846.0,0.00019563,2]
[408450454,1773654633735,-404.0,0.00019663,2]
[408450455,1773654633745,-2128.75705787,0.00019666,2]
[408450456,1773654633754,-153.92106085,0.00019671,2]
[408450457,1773654633764,-386.95,0.0001971,2]
[408450458,1773654633773,-453.0,0.00019726,2]
[408450459,1773654633783,-264.31399892,0.00019726,7]
[408450460,1773654633791,-12733.0,0.00019747,2]
[408450461,1773654633801,-1417.36416949,0.00019749,2]
[408450462,1773654633810,-210.11,0.00019755,2]
[408450463,1773654633819,-453.0,0.00019781,2]
[408450464,1773654633829,-404.0,0.00019782,2]
[408450465,1773654633838,-2128.75705787,0.00019783,2]
[408450466,1773654633848,-202.0,0.00019795,2]
[408450467,1773654633858,-1000.0,0.000198,2]
[408450468,1773654633867,-2000.0,0.000198,2]
[408450469,1773654633877,-2000.0,0.000198,2]
[408450470,1773654633887,-2000.0,0.000198,2]
[408450471,1773654633897,-2000.0,0.000198,2]
[408450472,1773654633906,-453.0,0.00019836,2]
[408450473,1773654633917,-23456.0,0.00019853,2]
[408450474,1773654633926,-174.56,0.0001986,2]
[408450475,1773654633936,-2470.564,0.0001986,2]
[408450476,1773654633945,-500.0,0.0001989,2]
[408450477,1773654633955,-453.0,0.0001989,2]
[408450478,1773654633965,-500.0,0.00019899,2]
[408450479,1773654633975,-333.80551454,0.00019899,2]
[408450480,1773654633985,-500.0,0.00019899,2]
[408450481,1773654633998,-502.83202664,0.00019899,2]
[408450482,1773654634009,-500.0,0.00019899,2]
[408450483,1773654634020,-500.0,0.00019899,2]
[408450484,1773654634030,-500.0,0.00019899,2]
[408450485,1773654634040,-425.48857279,0.00019899,2]
[408450486,1773654634051,-308.7218,0.000199,2]
[408450487,1773654634061,-526.59846192,0.000199,2]
[408450488,1773654634074,-18184.4901417,0.000199,3]
[408450489,1773654634085,-2128.75705787,0.000199,2]
[408450490,1773654634095,-2092.3788,0.000199,2]
[408450491,1773654634106,-1417.36416949,0.000199,2]
[408450492,1773654634116,-396.54535372,0.000199,2]
[408450493,1773654634126,-3114.0,0.000199,5]
[408450494,1773654634136,-317.49,0.00019945,2]
[408450495,1773654634146,-453.0,0.00019945,2]
[408450496,1773654634156,-925.60547283,0.00019968,2]
[408450497,1773654634166,-1500.0,0.00019968,2]
[408450498,1773654634176,-270.63531583,0.00019973,2]
[408450499,1773654634186,-500.251219,0.00019973,2]
[408450500,1773654634195,-500.0,0.00019973,2]
[408450501,1773654634205,-500.0,0.00019973,2]
[408450502,1773654634215,-526.19704835,0.00019973,2]
[408450503,1773654634226,-501.93995683,0.00019973,2]
[408450504,1773654634235,-506.49172954,0.00019973,2]
[408450505,1773654634250,-336.85380746,0.00019973,2]
[408450506,1773654634259,-503.22825721,0.00019973,2]
[408450507,1773654634269,-502.66188252,0.00019973,2]
[408450508,1773654634280,-500.0,0.00019973,2]
[408450509,1773654634290,-500.0,0.00019973,2]
[408450510,1773654634301,-500.0,0.00019973,2]
[408450511,1773654634312,-500.0,0.00019973,2]
[408450512,1773654634322,-500.0,0.00019973,2]
[408450513,1773654634332,-501.83165766,0.00019973,2]
[408450514,1773654634342,-250.0,0.00019973,2]
[408450515,1773654634352,-150.0,0.0001998,2]
[408450516,1773654634361,-386.99138243,0.00019984,2]
[408450517,1773654634372,-840.19,0.00019989,2]
[408450518,1773654634381,-449.29982481,0.0001999,2]
[408450519,1773654634391,-449.29982481,0.0001999,2]
[408450520,1773654634400,-449.29982481,0.0001999,2]
[408450521,1773654634409,-3431.6235156,0.00019996,2]
[408450522,1773654634419,-151.0,0.00019997,2]
[408450523,1773654634428,-309.40321204,0.00019999,2]
[408450524,1773654634438,-690.01041515,0.00019999,2]
[408450525,1773654634449,-1151.278279,0.00019999,5]
[408450526,1773654634458,-1151.278279,0.00019999,5]
[408450527,1773654634467,-350.67723425,0.00019999,2]
[408450528,1773654634478,-7845.0,0.00019999,2]
[408450529,1773654634487,-3000.0,0.00019999,2]
[408450530,1773654634498,-840.19,0.00019999,2]
[408450531,1773654634508,-840.19,0.00019999,2]
[408450532,1773654634517,-840.19,0.00019999,2]
[408450533,1773654634526,-840.19,0.00019999,2]
[408450534,1773654634536,-840.19,0.00019999,2]
[408450535,1773654634545,-840.19,0.00019999,2]
[408450536,1773654634554,-840.19,0.00019999,2]
[408450537,1773654634564,-840.19,0.00019999,2]
[408450538,1773654634573,-840.19,0.00019999,2]
[408450539,1773654634583,-840.19,0.00019999,2]
[408450540,1773654634592,-840.19,0.00019999,2]
[408450541,1773654634601,-840.19,0.00019999,2]
[408450542,1773654634611,-840.19,0.00019999,2]
[408450543,1773654634620,-840.19,0.00019999,2]
[408450544,1773654634629,-840.19,0.00019999,2]
[408450545,1773654634639,-840.19,0.00019999,2]
[408450546,1773654634648,-840.19,0.00019999,2]
[408450547,1773654634657,-840.19,0.00019999,2]
[408450548,1773654634667,-840.19,0.00019999,2]
[408450549,1773654634676,-840.19,0.00019999,2]
[408450550,1773654634685,-840.21193391,0.00019999,2]
[408450551,1773654634694,-500.0,0.00019999,2]
[408450552,1773654634704,-500.0,0.00019999,2]
[408450553,1773654634713,-500.0,0.00019999,2]
[408450554,1773654634723,-154.18560746,0.00019999,2]
[408450555,1773654634733,-3885.0,0.0002,5]
[408450556,1773654634743,-453.0,0.0002,2]
[408450557,1773654634753,-274562.14872067,0.0002,2]
[408450558,1773654634767,-47514.03814124,0.0002,2]
[408450559,1773654634779,-33747.76260867,0.0002,2]
[408450560,1773654634791,-80029.64706518,0.0002,2]
[408450561,1773654634810,-762.8402058,0.0002,2]
[408450562,1773654634828,-9353.52413611,0.0002,2]
[408450563,1773654634839,-1217.40443236,0.0002,2]
[408450564,1773654634855,-2560.60798747,0.0002,2]
[408450565,1773654634866,-644.71052742,0.0002,2]
[408450566,1773654634878,-253.91423836,0.0002,2]
[408450572,1773654638490,-695.53323044,0.00017045,2]
[408450573,1773654638503,-968.12794408,0.00017045,2]
[408450574,1773654638543,-425.05675248,0.00017045,2]
[408450575,1773654638555,-282.072073,0.00017045,2]
[408450576,1773654638564,-717.927927,0.000199,2]
[408450577,1773654638575,-1333.51199559,0.000199,2]
[408450578,1773654638586,-1050.0,0.000199,2]
[408450579,1773654638602,-1555.7000002,0.000199,2]
[408450580,1773654638652,-1506.3735187,0.000199,2]
[408450589,1773654640355,-5570.48109303,0.000199,2]
[408450590,1773654640366,-2208.02703944,0.000199,2]
[408450591,1773654640376,-12021.2468765,0.0002,2]
[408450592,1773654640389,-447247.27508939,0.0002,2]
[408450593,1773654640399,-3000.0,0.0002,2]
[408450594,1773654640408,-216.0,0.0002,2]
[408450595,1773654640418,-150.0,0.0002,2]
[408450596,1773654640427,-165.54,0.0002,2]
[408450597,1773654640436,-200.0,0.0002,2]
[408450598,1773654640446,-250.0,0.0002,2]
[408450599,1773654640455,-236.084,0.0002,2]
[408450600,1773654640464,-201.441,0.0002,2]
[408450601,1773654640473,-219.836,0.0002,2]
[408450602,1773654640482,-162.197,0.0002,2]
[408450603,1773654640491,-250.0,0.0002,2]
[408450604,1773654640506,-4356028.78453797,0.0002,2]
[408450605,1773654640519,-37097.49130031,0.0002,2]
[408450606,1773654640530,-20391.13707399,0.0002,2]
[408450607,1773654640541,-308.67861533,0.0002,2]
[408450608,1773654640595,-2094.6244665,0.0002,2]
[408450609,1773654640606,-597.032921,0.0002,2]
[408450640,1773654643479,-732.0,0.0002,2]
[408450796,1773654646063,-726.7505418,0.000199,2]
[408450797,1773654646074,-9664.25934027,0.000199,2]
[408450798,1773654646086,-706.01949435,0.000199,2]
[408450799,1773654646116,-25555.40265646,0.000199,2]
[408450800,1773654646125,-305538.28695951,0.0002,2]
[408450801,1773654646312,-264.49836615,0.0002,2]
[408450802,1773654646336,-5746.00000144,0.0002,2]
[408450803,1773654646385,-1183.72033041,0.0002,2]
[408450804,1773654646396,-3254.19232161,0.0002,2]
[408450805,1773654646440,-1980.96955014,0.0002,2]
[408450806,1773654646451,-12903.51659511,0.0002,2]
[408450811,1773654972739,10000.0,0.000205,10]
[408450812,1773655001740,8059.32,0.000205,10]
[408450814,1773655276310,3929.04607602,0.00022,14]
[408450815,1773655396969,163.86,0.000222,14]
[408450816,1773655649113,-177.45,0.00014842,2]
[408450817,1773655649135,-50.19602873,0.00018578,2]
[408450818,1773655651247,-233.94517127,0.00018578,2]
[408450819,1773655651268,-550.49,0.00018661,2]
[408450820,1773655651288,-1073.75681213,0.00018678,2]
[408450829,1773655832182,-466.53590046,0.00018561,2]
[408450832,1773655832236,-16.55089954,0.00018561,2]
[408450833,1773655832246,-309.0,0.00018561,2]
[408450834,1773655832255,-157.2,0.00018645,2]
[408450835,1773655832265,-426.24318787,0.00018678,2]
[408450836,1773655832276,-200.0,0.00018772,2]
[408450837,1773655832286,-1000.0,0.00018789,2]
[408450838,1773655832296,-500.0,0.00018889,2]
[408450839,1773655832306,-152.0,0.0001892,3]
[408450840,1773655832316,-500.0,0.00018946,2]
[408450841,1773655832326,-4246.41,0.00018961,2]
[408450842,1773655832336,-9999.99,0.00018961,2]
[408450843,1773655832346,-150.99,0.00018961,2]
[408450844,1773655832356,-151.0,0.00018999,2]
[408450845,1773655832366,-174.61919141,0.00018999,2]
[408450846,1773655832375,-250.72299322,0.00019,2]
[408450861,1773655832385,-500.0,0.00019,2]
[408450862,1773655832565,-500.0,0.00019,2]
[408450863,1773655832575,-319.30548858,0.00019,2]
[408450864,1773655832585,-2000.0,0.000192,2]
[408450865,1773655832594,-616.0,0.000192,2]
[408450866,1773655832604,-647.0,0.00019225,2]
[408450867,1773655832614,-574.0,0.00019299,2]
[408450868,1773655832624,-647.0,0.0001933,2]
[408450869,1773655832633,-647.0,0.00019358,2]
[408450870,1773655832642,-647.0,0.00019369,2]
[408450871,1773655832651,-1000.0,0.00019548,2]
[408450872,1773655832661,-1000.0,0.00019548,2]
[408450873,1773655832670,-970.1904,0.000196,2]
[408450874,1773655832679,-500.0,0.00019607,2]
[408450875,1773655832690,-500.0,0.00019607,2]
[408450876,1773655832704,-500.0,0.00019607,2]
[408450877,1773655832713,-500.0,0.00019607,2]
[408450878,1773655832723,-500.0,0.00019607,2]
[408450879,1773655832733,-500.0,0.00019607,2]
[408450880,1773655832743,-500.0,0.00019607,2]
[408450881,1773655832753,-500.0,0.00019607,2]
[408450882,1773655832763,-500.0,0.00019607,2]
[408450883,1773655832772,-250.0,0.00019607,2]
[408450884,1773655832782,-500.0,0.00019607,2]
[408450885,1773655832791,-250.0,0.00019607,2]
[408450886,1773655832801,-500.0,0.00019607,2]
[408450887,1773655832810,-250.0,0.00019607,2]
[408450888,1773655832819,-500.0,0.00019607,2]
[408450889,1773655832828,-250.0,0.00019607,2]
[408450890,1773655832838,-250.0,0.00019607,2]
[408450891,1773655832847,-250.0,0.00019607,2]
[408450892,1773655832856,-200.0,0.00019607,2]
[408450893,1773655832866,-250.0,0.00019607,2]
[408450894,1773655832875,-250.0,0.00019607,2]
[408450895,1773655832886,-500.0,0.00019607,2]
[408450896,1773655832896,-500.0,0.00019607,2]
[408450897,1773655832907,-500.0,0.00019607,2]
[408450898,1773655832918,-500.0,0.00019607,2]
[408450899,1773655832927,-500.0,0.00019607,2]
[408450900,1773655832936,-500.0,0.00019607,2]
[408450901,1773655832947,-500.0,0.00019607,2]
[408450902,1773655832956,-189.38699383,0.00019607,2]
[408450903,1773655832965,-647.0,0.00019618,2]
[408450904,1773655832974,-822.870187,0.00019699,2]
[408450905,1773655832984,-1920.9046,0.000197,2]
[408450906,1773655832993,-72628.22413195,0.000197,2]
[408450907,1773655833142,-12786.56506805,0.000197,2]
[408450908,1773655833151,-997.36409847,0.000197,2]
[408450909,1773655833163,-309.88642084,0.000197,2]
[408450910,1773655833174,-778.30235021,0.000197,2]
[408450911,1773655833530,-25.29400313,0.000197,2]
[408450912,1773655833542,-387.105,0.000197,2]
[408450913,1773655833553,-2.04812735,0.000197,2]
[408450914,1773655833562,-1511.05638781,0.000197,2]
[408450915,1773655833571,-102.04085135,0.000197,2]
[408450916,1773655833583,-1561.68844235,0.000197,2]
[408450917,1773655833594,-158.40373644,0.000197,2]
[408450918,1773655833604,-4972.01181465,0.0001971,2]
[408450919,1773655833619,-27.98818535,0.0001971,2]
[408450920,1773655833629,-541.67713465,0.00019721,2]
[408450921,1773655833641,-281.19305227,0.00019721,2]
[408450922,1773655833650,-131.58422842,0.00019722,2]
[408450923,1773655833668,-585.39195199,0.00019722,2]
[408450925,1773655838278,-794.0802074,0.00019722,2]
[408450926,1773655838288,-463.60679831,0.00019726,2]
[408450927,1773655838300,-36.39320169,0.00019726,2]
[408450928,1773655838310,-150.0,0.00019726,7]
[408450929,1773655838320,-129.68138677,0.00019729,2]
[408450930,1773655838333,-301.22878301,0.00019729,2]
[408450931,1773655838344,-1185.74262942,0.00019729,2]
[408450932,1773655838356,-205.4802309,0.00019729,2]
[408450933,1773655838366,-822.87018692,0.00019744,2]
[408450934,1773655838375,-779.50835466,0.00019744,2]
[408450935,1773655838387,-731.54803315,0.00019744,2]
[408450936,1773655838396,-500.0,0.00019753,2]
[408450937,1773655838405,-744.54713319,0.00019757,2]
[408450938,1773655838424,-1077.58589691,0.00019757,2]
[408450939,1773655838436,-822.87018692,0.00019766,2]
[408450940,1773655838446,-1511.05638781,0.00019767,2]
[408450941,1773655838456,-9.59349887,0.0001977,2]
[408450942,1773655838480,-268.40650113,0.0001977,2]
[408450943,1773655838490,-502.90185941,0.00019773,2]
[408450945,1773655838499,-500.0,0.00019773,2]
[408450947,1773655838509,-500.0,0.00019773,2]
[408450949,1773655838518,-501.05181581,0.00019773,2]
[408450951,1773655838527,-500.96059113,0.00019773,2]
[408450953,1773655838537,-503.30261259,0.00019773,2]
[408450955,1773655838547,-504.29304807,0.00019773,2]
[408450957,1773655838556,-560.11906367,0.00019773,2]
[408450959,1773655838566,-500.0,0.00019773,2]
[408450961,1773655838577,-500.0,0.00019773,2]
[408450963,1773655838586,-501.71862419,0.00019773,2]
[408450965,1773655838596,-501.85464549,0.00019773,2]
[408450967,1773655838605,-503.39059615,0.00019773,2]
[408450969,1773655838617,-386.61016156,0.00019773,2]
[408450971,1773655838626,-500.0,0.00019773,2]
[408450973,1773655838636,-500.0,0.00019773,2]
[408450975,1773655838645,-500.0,0.00019773,2]
[408450977,1773655838654,-500.0,0.00019773,2]
[408450979,1773655838664,-500.0,0.00019781,2]
[408450981,1773655838673,-150.0,0.00019781,7]
[408450983,1773655838683,-1822.1330301,0.00019786,2]
[408450985,1773655838692,-822.87018692,0.00019788,2]
[408450987,1773655838705,-590.29526378,0.00019789,2]
[408450990,1773655838718,-920.76112403,0.00019789,2]
[408450992,1773655838727,-380.73,0.0001979,2]
[408450994,1773655838737,-380.73,0.0001979,2]
[408450996,1773655838747,-380.73,0.0001979,2]
[408450998,1773655838756,-380.73,0.0001979,2]
[408451000,1773655838767,-380.73,0.0001979,2]
[408451002,1773655838777,-500.0,0.00019799,2]
[408451004,1773655838787,-500.0,0.00019799,2]
[408451006,1773655838796,-305.86470978,0.00019799,2]
[408451008,1773655838805,-353.04227959,0.00019799,2]
[408451010,1773655838814,-500.0,0.00019799,2]
[408451012,1773655838823,-500.0,0.00019799,2]
[408451014,1773655838832,-500.0,0.00019799,2]
[408451015,1773655838842,-500.0,0.00019799,2]
[408451017,1773655838851,-500.0,0.00019799,2]
[408451019,1773655838860,-231.7555346,0.00019799,2]
[408451021,1773655838870,-500.0,0.00019799,2]
[408451023,1773655838879,-500.0,0.00019799,2]
[408451025,1773655838889,-500.0,0.00019799,2]
[408451027,1773655838898,-16295.30761184,0.000198,2]
[408451030,1773655838914,-1386.35636678,0.000198,2]
[408451186,1773655840442,-544.2039824,0.000198,2]
[408451189,1773655840454,-461.04710144,0.000198,2]
[408451194,1773655840494,-513768.59953754,0.000198,2]
[408451196,1773655840504,-5774.96887006,0.000198,2]
[408451198,1773655840514,-2453.89642655,0.000198,2]
[408451200,1773655840523,-933.49921,0.000198,2]
[408451202,1773655840533,-933.49921,0.000198,2]
[408451204,1773655840543,-1826.0,0.0001981,5]
[408451206,1773655840552,-774232.3187,0.0001981,2]
[408451208,1773655840561,-906.75,0.0001981,2]
[408451210,1773655840571,-822.87018692,0.00019811,2]
[408451212,1773655840580,-1511.05638781,0.00019811,2]
[408451214,1773655840590,-1822.1330301,0.00019814,2]
[408451216,1773655840599,-1511.05638781,0.00019833,2]
[408451218,1773655840608,-500.0,0.00019836,2]
[408451220,1773655840617,-256.5359294,0.00019836,7]
[408451222,1773655840627,-1511.05638781,0.00019856,2]
[408451224,1773655840636,-1976.451,0.00019863,2]
[408451226,1773655840645,-2464.0,0.00019868,2]
[408451228,1773655840655,-6003.0,0.00019868,2]
[408451230,1773655840664,-416.028,0.00019868,2]
[408451232,1773655840673,-500.0,0.00019873,2]
[408451234,1773655840682,-501.14795082,0.00019873,2]
[408451236,1773655840692,-500.0,0.00019873,2]
[408451238,1773655840702,-501.08688956,0.00019873,2]
[408451239,1773655840711,-501.44386623,0.00019873,2]
[408451241,1773655840721,-500.0,0.00019873,2]
[408451243,1773655840730,-501.02691611,0.00019873,2]
[408451244,1773655840739,-500.0,0.00019873,2]
[408451245,1773655840749,-500.0,0.0001989,2]
[408451246,1773655840760,-2290.0,0.000199,5]
[408451247,1773655840770,-18147.16310089,0.0001991,2]
[408451248,1773655840782,-500.0,0.00019945,2]
[408451249,1773655840795,-409.01152396,0.0001998,2]
[408451250,1773655840804,-151.0,0.00019997,2]
[408451251,1773655840813,-3275.3943831,0.00019998,2]
[408451255,1773655841004,-9365.3126901,0.00019998,2]
[408451257,1773655841015,-3013.3413748,0.00019998,2]
[408451259,1773655841025,-71576.0145083,0.00019998,2]
[408451261,1773655841034,-34549.6349531,0.00019998,2]
[408451263,1773655841043,-155.0,0.00019999,2]
[408451265,1773655841052,-500.0,0.00019999,2]
[408451267,1773655841061,-178.11078192,0.00019999,2]
[408451269,1773655841070,-193.31862375,0.00019999,2]
[408451271,1773655841079,-500.0,0.0002,2]
[408451273,1773655841088,-1447800.93858863,0.0002,2]
[408451275,1773655841097,-1444347.2171227,0.0002,2]
[408451277,1773655841109,-1132.05000001,0.0002,2]
[408451280,1773655841127,-2019.91513355,0.0002,2]
[408451545,1773655843609,-822.87018692,0.00019833,2]
[408451547,1773655843618,-1822.1330301,0.00019843,2]
[408451549,1773655843627,-1511.05638781,0.00019878,2]
[408451551,1773655843637,-269730.57191715,0.0002,2]
[408451647,1773655846540,-822.87018692,0.00019855,2]
[408451648,1773655846550,-1822.1330301,0.00019871,2]
[408451649,1773655846559,-1511.05638781,0.000199,2]
[408451650,1773655846570,-201735.0872952,0.0002,2]
[408451651,1773655846582,-4018.24823846,0.0002,2]
[408451685,1773656520969,5000.01,9.499e-05,2]
[408451686,1773656520995,247.74,9.499e-05,2]
[408451688,1773656584453,257.92,9.266e-05,2]
[408451689,1773656834142,-257.92,9.754e-05,2]
[408451690,1773656834163,-257.92,0.00010242,2]
[408451691,1773656834182,-257.92,0.00010729,2]
[408451692,1773656834201,-257.92,0.00011217,2]
[408451693,1773656834222,-257.92,0.00011705,2]
[408451694,1773656834248,-214.69081949,0.00012192,2]
[408451695,1773656940617,423.41,0.000205,10]
[408451696,1773656951124,-43.22918051,0.00012192,2]
[408451697,1773656951150,-257.92,0.0001268,2]
[408451698,1773656951170,-257.92,0.00013168,2]
[408451699,1773656951190,-1510.2511326,0.00013412,2]
[408451700,1773656951211,-257.92,0.00013656,2]
[408451701,1773656951231,-257.92,0.00014143,2]
[408451702,1773656951252,-257.92,0.00014631,2]
[408451703,1773656951272,-1506.77,0.00014995,2]
[408451704,1773656951292,-257.92,0.00015119,2]
[408451705,1773656951312,-257.92,0.00015606,2]
[408451706,1773656951332,-177.21,0.00016069,2]
[408451707,1773656951352,-38.30332183,0.00016094,2]
[408451708,1773656970086,-219.61667817,0.00016094,2]
[408451709,1773656970110,-200.67583713,0.00016452,2]
[408451710,1773656970131,-257.92,0.00016582,2]
[408451711,1773656970155,-257.92,0.00017069,2]
[408451712,1773656970177,-257.92,0.00017557,2]
[408451713,1773656970197,-658.11048011,0.00017778,2]
[408451723,1773657031382,-3.70951989,0.00017778,2]
[408451724,1773657031392,-150.0,0.00017814,2]
[408451725,1773657031402,-257.92,0.00018045,2]
[408451726,1773657031411,-257.92,0.00018533,2]
[408451727,1773657031421,-864.88933265,0.00018656,2]
[408451728,1773657031541,-4166.10066735,0.00018656,2]
[408451729,1773657031550,-150.0,0.00018819,2]
[408451730,1773657031564,-1200.0,0.00018998,2]
[408451731,1773657031574,-500.0,0.00018999,2]
[408451732,1773657031583,-181.67968538,0.00018999,2]
[408451733,1773657031593,-428.10980085,0.0001901,2]